fUST/lending_fUST_20240515
["ID","MTS","AMOUNT","RATE_DAILY","PERIOD"]
[327060947,1715767834094,-266.61,0.00024343,3]
[327060948,1715767834103,-7848.29057362,0.0002435,2]
[327060989,1715767841150,-171.6,0.00022185,2]
[327060991,1715767841159,-171.6,0.00022659,2]
[327060993,1715767841169,-171.6,0.00023133,2]
[327060995,1715767841178,-171.6,0.00023606,3]
[327060997,1715767841187,-500.0,0.00023897,2]
[327060999,1715767841196,-500.0,0.00023897,2]
[327061001,1715767841206,-323.92366926,0.00023897,2]
[327061003,1715767841216,-171.6,0.0002408,3]
[327061005,1715767841225,-1633.12135758,0.0002435,2]
[327061007,1715767841237,-412.008909,0.0002435,2]
[327061070,1715767844215,-333.92645003,0.00022195,2]
[327061092,1715767847167,-62.76401551,0.00022195,2]
[327061093,1715767847177,-396.69046554,0.00022474,2]
[327061094,1715767847189,-396.69046554,0.00022911,2]
[327061095,1715767847199,-396.69046554,0.00023038,2]
[327061096,1715767847208,-396.69046554,0.00023304,2]
[327061097,1715767847218,-71.89298313,0.00023562,2]
[327061098,1715767847231,-132.36838597,0.00023562,2]
[327061099,1715767847241,-171.38161403,0.00023662,2]
[327061101,1715767986299,1042.78198065,9.999e-05,2]
[327061110,1715768199047,500.0,9.999e-05,2]
[327061113,1715768591220,250.0,0.00017401,2]
[327061114,1715768655343,24890.0,0.00017378,2]
[327061115,1715768666137,273.37336231,9.9e-05,2]
[327061116,1715768849241,187.2207778,0.00017374,2]
[327061117,1715768916177,154.81422293,9.999e-05,2]
[327061119,1715768975664,817.80441059,9.999e-05,2]
[327061120,1715768980526,154.81422293,9.999e-05,2]
[327061121,1715768992919,1313.42331211,9.999e-05,2]
[327061122,1715769011791,154.81422293,9.999e-05,2]
[327061200,1715769035098,-11045.87058059,0.00018336,2]
[327061202,1715769035108,-7890.55584427,0.00018337,2]
[327061204,1715769035118,-702.19428712,0.00018337,2]
[327061206,1715769035129,-242.08726604,0.00018337,2]
[327061208,1715769035139,-245.80186812,0.00018348,2]
[327061210,1715769035148,-153.23142217,0.00018358,2]
[327061212,1715769035159,-42792.05467327,0.00018446,2]
[327061214,1715769035169,-1031.83456577,0.00018449,2]
[327061216,1715769035179,-203.28596128,0.00018449,2]
[327061218,1715769035189,-150.0,0.000189,2]
[327061220,1715769035198,-683.04467352,0.000189,2]
[327061222,1715769035208,-154.81422293,0.00019,2]
[327061224,1715769035219,-175.326743,0.00019178,2]
[327061226,1715769035229,-245.8018681,0.00019861,2]
[327061228,1715769035238,-392.68137647,0.000199,2]
[327061230,1715769035248,-373.25,0.0001999,3]
[327061232,1715769035257,-186.62,0.0001999,3]
[327061234,1715769035267,-559.91,0.0001999,3]
[327061236,1715769035276,-471.21166451,0.00019999,2]
[327061238,1715769035286,-500.0,0.00019999,2]
[327061240,1715769035295,-500.0,0.00019999,2]
[327061242,1715769035304,-500.0,0.00019999,2]
[327061244,1715769035314,-500.0,0.00019999,2]
[327061246,1715769035323,-500.0,0.00019999,2]
[327061248,1715769035333,-500.0,0.00019999,2]
[327061250,1715769035343,-500.0,0.00019999,2]
[327061252,1715769035352,-500.0,0.00019999,2]
[327061254,1715769035362,-500.0,0.00019999,2]
[327061256,1715769035371,-500.0,0.00019999,2]
[327061258,1715769035386,-500.0,0.00019999,2]
[327061261,1715769035399,-500.0,0.00019999,2]
[327061263,1715769035408,-500.0,0.00019999,2]
[327061265,1715769035418,-500.0,0.00019999,2]
[327061267,1715769035427,-500.0,0.00019999,2]
[327061269,1715769035436,-500.0,0.00019999,2]
[327061271,1715769035445,-500.0,0.00019999,2]
[327061273,1715769035455,-500.0,0.00019999,2]
[327061275,1715769035465,-500.0,0.00019999,2]
[327061277,1715769035475,-500.0,0.00019999,2]
[327061279,1715769035485,-500.0,0.00019999,2]
[327061281,1715769035494,-500.0,0.00019999,2]
[327061282,1715769035505,-500.0,0.00019999,2]
[327061284,1715769035515,-500.0,0.00019999,2]
[327061286,1715769035524,-500.0,0.00019999,2]
[327061288,1715769035534,-500.0,0.00019999,2]
[327061291,1715769035543,-242.46170785,0.00019999,2]
[327061292,1715769035553,-500.0,0.00019999,2]
[327061294,1715769035562,-155.9775286,0.00019999,2]
[327061297,1715769035576,-344.0224714,0.00019999,2]
[327061299,1715769035585,-500.0,0.00019999,2]
[327061301,1715769035595,-499.95393407,0.0002,2]
[327061303,1715769035604,-3947.77766676,0.0002,2]
[327061305,1715769035616,-383.7998292,0.0002,2]
[327061307,1715769035631,-7713.0,0.0002,2]
[327061310,1715769035647,-2146.16033508,0.0002,2]
[327061312,1715769035659,-7952.294237,0.0002,2]
[327061314,1715769035672,-480.25693471,0.0002,2]
[327061526,1715769040062,-16451.63528386,0.0002,2]
[327061529,1715769040073,-1037.06311228,0.0002,2]
[327061532,1715769040086,-527.81054446,0.0002,2]
[327061534,1715769040097,-154.81422293,0.00020811,2]
[327061535,1715769040107,-201.54623293,0.00020812,2]
[327061538,1715769040117,-468.0382546,0.00020911,2]
[327061539,1715769040130,-155.35850913,0.00020911,2]
[327061640,1715769041243,-344.64149087,0.00020911,2]
[327061642,1715769041253,-168.84732501,0.00020911,2]
[327061644,1715769041265,-256.99799994,0.00020911,2]
[327061664,1715769041440,-74.15467505,0.00020911,2]
[327061666,1715769041450,-415.5597254,0.00020911,2]
[327061668,1715769041459,-461.16328846,0.00020911,2]
[327061670,1715769041468,-500.0,0.00020911,2]
[327061672,1715769041477,-49.15663889,0.00020911,2]
[327061952,1715769044155,-201.94785622,0.00019999,2]
[327061954,1715769044165,-366.63280282,0.00020911,2]
[327061955,1715769044174,-215.90743749,0.00020911,2]
[327061957,1715769044183,-543.81533538,0.00020911,2]
[327061959,1715769044193,-500.0,0.00020911,2]
[327061961,1715769044202,-500.0,0.00020911,2]
[327061963,1715769044211,-500.0,0.00020911,2]
[327061965,1715769044220,-500.0,0.00020911,2]
[327061967,1715769044229,-500.0,0.00020911,2]
[327061969,1715769044238,-446.69656809,0.00020911,2]
[327061971,1715769044250,-53.30343191,0.00020911,2]
[327061974,1715769044260,-500.0,0.00020911,2]
[327061976,1715769044270,-500.0,0.00020911,2]
[327061978,1715769044279,-500.0,0.00020911,2]
[327061980,1715769044289,-500.0,0.00020911,2]
[327061982,1715769044298,-244.86653742,0.00020911,2]
[327061984,1715769044307,-1234.1483698,0.00020911,2]
[327061986,1715769044317,-1389.5236272,0.00021,2]
[327061988,1715769044326,-392.68137643,0.00021064,2]
[327061990,1715769044336,-746.5,0.0002136,3]
[327061992,1715769044346,-373.24,0.0002136,3]
[327061994,1715769044355,-245.8018681,0.00021375,2]
[327061996,1715769044364,-194.432797,0.00021918,2]
[327061998,1715769044373,-581.0,0.00022,2]
[327061999,1715769044383,-773.63092485,0.00022099,5]
[327062002,1715769044392,-581.0,0.00022192,2]
[327062004,1715769044402,-392.68137643,0.00022229,2]
[327062005,1715769044412,-150.0,0.00022295,2]
[327062008,1715769044421,-334.7361762,0.0002274,2]
[327062010,1715769044431,-150.0,0.00022759,2]
[327062011,1715769044440,-245.8018681,0.00022888,2]
[327062014,1715769044450,-581.0,0.00023014,2]
[327062016,1715769044460,-150.0,0.00023223,2]
[327062018,1715769044469,-392.68137643,0.00023393,2]
[327062020,1715769044479,-408.5018068,0.00023562,2]
[327062022,1715769044488,-408.5018068,0.00023562,2]
[327062024,1715769044497,-409.422793,0.00023562,2]
[327062026,1715769044507,-204.2509034,0.00023562,2]
[327062027,1715769044516,-197.20288814,0.00023562,2]
[327062339,1715769047909,-150.0,0.00022295,2]
[327062341,1715769047918,-7.04801526,0.00023562,2]
[327062343,1715769047928,-408.4913411,0.00023562,2]
[327062345,1715769047937,-150.0,0.00023686,3]
[327062347,1715769047947,-416.7728428,0.00023948,2]
[327062349,1715769047956,-150.0,0.00024072,2]
[327062351,1715769047965,-2744.93316216,0.00024087,2]
[327062353,1715769047974,-408.5018068,0.0002411,2]
[327062355,1715769047983,-204.2509034,0.0002411,2]
[327062357,1715769047992,-408.4913411,0.0002411,2]
[327062359,1715769048001,-150.0,0.0002415,3]
[327062361,1715769048010,-586.0,0.00024164,2]
[327062363,1715769048020,-1000.0,0.00024218,2]
[327062365,1715769048028,-1000.0,0.00024241,2]
[327062367,1715769048037,-150.0,0.0002426,8]
[327062369,1715769048046,-1000.0,0.00024263,2]
[327062371,1715769048055,-245.02448788,0.00024307,2]
[327062373,1715769048064,-1000.0,0.00024335,2]
[327062375,1715769048074,-1250.04173874,0.0002435,2]
[327062377,1715769048083,-1000.0,0.00024363,2]
[327062379,1715769048091,-408.5018068,0.00024384,2]
[327062381,1715769048100,-684.29354561,0.00024398,2]
[327062383,1715769048109,-154.81422293,0.00024399,2]
[327062385,1715769048118,-819.45423449,0.00024399,2]
[327062387,1715769048128,-3825.15476216,0.000244,2]
[327062389,1715769048137,-2000.0,0.000244,2]
[327062391,1715769048146,-245.8018681,0.00024401,2]
[327062392,1715769048155,-620.4960871,0.00024449,2]
[327062393,1715769048164,-475.33375336,0.00024453,2]
[327062395,1715769048173,-175.09385859,0.00024453,2]
[327062397,1715769048183,-250.36109787,0.00024454,2]
[327062403,1715769048349,-3927.94584459,0.00024454,2]
[327062404,1715769048359,-2871.76499977,0.00024455,3]
[327062405,1715769048371,-15062.4,0.00024455,3]
[327062409,1715769415438,5027.82490243,0.000125,2]
[327062410,1715769822822,317.348067,0.00017965,2]
[327062411,1715769869385,154.82968734,0.00017965,2]
[327062412,1715769877264,154.82968734,0.00017965,2]
[327062413,1715769878020,2088.73928947,0.00017965,2]
[327062414,1715769879581,2711.73064131,0.00017965,2]
[327062415,1715769885315,196.52216603,0.00017965,2]
[327062416,1715769897273,155.61084925,0.00017965,2]
[327062417,1715769897330,2088.73928947,0.00017965,2]
[327062418,1715769903772,2711.73064131,0.00017965,2]
[327062419,1715769911963,1738.72586858,0.00017965,2]
[327062420,1715769916821,194.35454453,9.999e-05,2]
[327062421,1715769925544,2711.73064131,0.00017965,2]
[327062422,1715769943541,2711.73064131,0.00017965,2]
[327062423,1715769961534,2711.73064131,0.00017965,2]
[327062424,1715769981550,2711.73064131,0.00017965,2]
[327062425,1715769999567,2711.73064131,0.00017965,2]
[327062426,1715770004660,154.82968734,9.999e-05,2]
[327062427,1715770021538,2711.73064131,0.00017965,2]
[327062428,1715770039591,2658.591934,9.999e-05,2]
[327062429,1715770056384,528.76307526,9.999e-05,2]
[327062430,1715770100903,684.29354561,9.999e-05,2]
[327062457,1715770232805,-6665.18864653,0.00018121,2]
[327062459,1715770232817,-3780.72223448,0.00018121,2]
[327062461,1715770232826,-104.73116059,0.00018122,2]
[327062464,1715770232838,-8500.62832772,0.00018122,2]
[327062466,1715770232850,-16294.64051169,0.00018122,2]
[327062468,1715770232859,-2686.92892201,0.0001834,2]
[327062469,1715770232868,-2261.2386177,0.00018403,2]
[327062471,1715770232877,-185.059074,0.00019178,2]
[327062473,1715770232886,-499.86264339,0.0002,2]
[327062475,1715770232895,-9424.73492173,0.0002,2]
[327062477,1715770232903,-1564.87365674,0.0002,2]
[327062479,1715770232913,-500.0,0.00020913,2]
[327062481,1715770232922,-500.0,0.00020913,2]
[327062483,1715770232931,-500.0,0.00020913,2]
[327062485,1715770232940,-193.18875995,0.00020913,2]
[327062487,1715770232950,-154.84515485,0.00022217,2]
[327062488,1715770232959,-150.0,0.00022218,2]
[327062490,1715770232968,-150.0,0.00022689,2]
[327062491,1715770232977,-150.0,0.0002316,2]
[327062493,1715770232986,-150.0,0.0002363,3]
[327062495,1715770233001,-684.29354561,0.00023835,2]
[327062497,1715770233010,-204.2509034,0.00023836,2]
[327062499,1715770233020,-204.2509034,0.00023836,2]
[327062501,1715770233030,-204.2509034,0.00023836,2]
[327062503,1715770233039,-1000.0,0.00024095,2]
[327062505,1715770233049,-416.7728428,0.00024173,2]
[327062507,1715770233058,-196.0195903,0.00024209,2]
[327062509,1715770233068,-2744.93316216,0.00024235,2]
[327062511,1715770233080,-150.0,0.0002426,8]
[327062513,1715770233089,-1668.22750496,0.000244,2]
[327062515,1715770233099,-402.66641586,0.00024453,2]
[327062517,1715770233108,-241.78477836,0.00024453,2]
[327062519,1715770233117,-154.81422293,0.00024453,2]
[327062521,1715770233127,-6660.33322783,0.00024453,2]
[327062598,1715770239347,-1751.17,0.00024453,2]
[327062757,1715770240878,-1075.17255683,0.00024453,2]
[327062759,1715770240887,-1747.237256,0.00024454,2]
[327062761,1715770240899,-311.20545213,0.00024454,2]
[327063284,1715770247123,-409.93621018,0.00024454,2]
[327063307,1715770306651,1884.51859878,9.999e-05,2]
[327063308,1715770308060,909.20919161,9.999e-05,2]
[327063309,1715770330471,930.94102569,0.00014,2]
[327063310,1715770336567,1338.26302922,9.999e-05,2]
[327063311,1715770350834,709.0884584,9.999e-05,2]
[327063312,1715770534303,395.12068195,9.999e-05,2]
[327063316,1715770950652,406.30178098,9.999e-05,2]
[327063317,1715771098807,154.86062544,9.999e-05,2]
[327063318,1715771141025,189.80933307,0.00018,2]
[327063319,1715771277607,684.29354561,9.999e-05,2]
[327063320,1715771292693,4587.57090755,0.00018,2]
[327063321,1715771292718,24100.42909245,0.00018,2]
[327063325,1715771371670,528.76307526,9.999e-05,2]
[327063337,1715771432307,-406.30178098,0.00018574,2]
[327063339,1715771432317,-10445.91088101,0.00018574,2]
[327063341,1715771432331,-154.87609912,0.00018574,2]
[327063343,1715771432343,-2113.61592946,0.00018575,2]
[327063345,1715771432353,-24900.0,0.00018577,2]
[327063347,1715771432363,-652.9284125,0.00018826,2]
[327063349,1715771432375,-444.8132716,0.00018828,2]
[327063351,1715771432384,-509.540977,0.00018853,2]
[327063353,1715771432395,-1287.19827176,0.000189,2]
[327063354,1715771432405,-1899.8027822,0.00019049,2]
[327063355,1715771432418,-1094.21209586,0.0002,2]
[327063384,1715771439177,-470.66156088,0.0002,2]
[327063385,1715771439187,-684.29354561,0.00022738,2]
[327063386,1715771439196,-159.63021158,0.00022738,2]
[327063387,1715771439205,-180.637194,0.00022921,2]
[327063388,1715771439215,-294.77810419,0.00023327,2]
[327063389,1715771439226,-615.99882747,0.00023327,2]
[327063390,1715771439235,-408.5122725,0.00023578,2]
[327063391,1715771439244,-1287.19827176,0.000239,2]
[327063392,1715771439253,-188.13208444,0.00023999,2]
[327063393,1715771439263,-376.68542931,0.00023999,2]
[327063394,1715771439272,-1064.77311452,0.00024,2]
[327063495,1715771440959,-6249.7,0.00024,2]
[327063711,1715771472736,909.20919161,9.999e-05,2]
[327063712,1715771483435,1495.65941735,9.999e-05,2]
[327063713,1715771483915,1580.67651805,9.999e-05,2]
[327063714,1715771496826,1402.37929891,9.999e-05,2]
[327063715,1715771497988,154.87609912,9.999e-05,2]
[327063716,1715771503825,492.70299531,9.999e-05,2]
[327063717,1715771504978,154.87609912,9.999e-05,2]
[327063718,1715771511287,585.03376366,9.999e-05,2]
[327063719,1715771511649,709.0884584,9.999e-05,2]
[327063720,1715771512153,236.41159802,9.999e-05,2]
[327063721,1715771517995,1896.63950962,9.999e-05,2]
[327063722,1715771527819,895.43313397,0.00018,2]
[327063723,1715771538849,154.87609912,9.999e-05,2]
[327063724,1715771570927,292.60916471,9.999e-05,2]
[327063726,1715771718691,2633.04320867,9.999e-05,2]
[327063727,1715771859442,2110.0,0.00023,30]
[327063731,1715772103663,702.19428712,9.999e-05,2]
[327063733,1715772353392,897.983135,0.00017326,2]
[327063734,1715772366543,395.12068195,9.999e-05,2]
[327063742,1715772404091,24900.0,0.00017324,2]
[327063743,1715772464318,489.26433381,0.00017324,2]
[327063744,1715772471405,182.35,0.00017324,2]
[327063745,1715772486994,528.18213945,9.999e-05,2]
[327063746,1715772495046,273.93944197,0.000165,2]
[327063747,1715772496773,242.08726604,9.999e-05,2]
[327063748,1715772538005,689.90178801,9.999e-05,2]
[327063771,1715772628310,449.763252,0.00017766,2]
[327063821,1715772635598,-1884.51859878,0.00018162,2]
[327063822,1715772635610,-44.29139556,0.00018163,2]
[327063823,1715772635623,-110.61566021,0.00018163,2]
[327063824,1715772635633,-2113.61592946,0.00018164,2]
[327063825,1715772635644,-2677.50168314,0.00018164,2]
[327063826,1715772635654,-528.76307526,0.00018165,2]
[327063827,1715772635664,-684.29354561,0.00018165,2]
[327063828,1715772635677,-9394.10786134,0.00018165,2]
[327063829,1715772635855,-154.90705577,0.00018166,2]
[327063830,1715772635866,-3060.90965728,0.00018166,2]
[327063831,1715772635877,-1495.65941735,0.00018166,2]
[327063832,1715772635887,-250.507935,0.00019896,2]
[327063833,1715772635897,-499.95393407,0.0002,2]
[327063834,1715772635907,-154.99908773,0.0002,2]
[327063835,1715772635917,-24970.50156877,0.0002,2]
[327063836,1715772635929,-200.0,0.0002,2]
[327063837,1715772635938,-1564.87365674,0.0002,2]
[327063838,1715772635948,-267.20423522,0.000208,2]
[327063839,1715772635958,-429.06609059,0.000209,2]
[327063840,1715772635968,-3568.89754908,0.00021,2]
[327063841,1715772635978,-166.666666,0.00021918,2]
[327063842,1715772635987,-649.13818402,0.00021999,2]
[327063843,1715772635997,-2498.48490267,0.00022,4]
[327063844,1715772636009,-703.7636435,0.00022,4]
[327063845,1715772637579,2106.56360216,0.00015,2]
[327063854,1715772641472,-2032.74290707,0.00022,4]
[327063855,1715772641481,-301.21454149,0.00022008,5]
[327063856,1715772641732,-29.9273555,0.00022008,5]
[327063857,1715772641742,-150.0,0.00022254,2]
[327063858,1715772641752,-267.20423522,0.00022578,2]
[327063859,1715772641762,-150.0,0.00022722,2]
[327063860,1715772641773,-166.666666,0.00022773,2]
[327063861,1715772641784,-689.90178801,0.00023221,2]
[327063862,1715772641793,-152.0,0.00023222,2]
[327063863,1715772641802,-166.666666,0.00023627,2]
[327063864,1715772641812,-2744.93316216,0.00023707,2]
[327063865,1715772641821,-416.7728428,0.00023777,2]
[327063866,1715772641832,-999.99999901,0.00024,2]
[327063867,1715772641841,-7962.61734382,0.00024,2]
[327063868,1715772641851,-156.81567224,0.00024209,2]
[327063869,1715772641860,-322.84950911,0.00024269,2]
[327063870,1715772641869,-468.43115123,0.00024354,2]
[327063871,1715772641879,-267.20423522,0.00024355,2]
[327063872,1715772641889,-468.4311512,0.00024379,2]
[327063873,1715772641898,-2000.0,0.00024398,2]
[327063874,1715772641907,-281.0,0.000244,2]
[327063875,1715772641916,-5797.76831247,0.000244,2]
[327063876,1715772641925,-468.4311512,0.00024404,2]
[327063877,1715772641935,-150.0,0.0002442,8]
[327063878,1715772641945,-468.4311512,0.00024428,2]
[327063879,1715772641955,-200.5878234,0.00024452,2]
[327063880,1715772641964,-500.0,0.00024452,2]
[327063881,1715772641974,-500.0,0.00024452,2]
[327063882,1715772641983,-500.0,0.00024452,2]
[327063883,1715772641993,-173.45996123,0.00024452,2]
[327063884,1715772642002,-500.0,0.00024452,2]
[327063885,1715772642012,-500.0,0.00024452,2]
[327063886,1715772642021,-500.0,0.00024452,2]
[327063887,1715772642030,-500.0,0.00024452,2]
[327063888,1715772642039,-500.0,0.00024452,2]
[327063889,1715772642049,-500.0,0.00024452,2]
[327063890,1715772642058,-500.0,0.00024452,2]
[327063891,1715772642067,-500.0,0.00024452,2]
[327063892,1715772642077,-500.0,0.00024452,2]
[327063893,1715772642086,-420.23437205,0.00024452,2]
[327063894,1715772642098,-79.76562795,0.00024452,2]
[327063895,1715772642107,-435.28599157,0.00024452,2]
[327063896,1715772642117,-500.0,0.00024452,2]
[327063897,1715772642126,-500.0,0.00024452,2]
[327063898,1715772642136,-500.0,0.00024452,2]
[327063899,1715772642145,-500.0,0.00024452,2]
[327063900,1715772642154,-500.0,0.00024452,2]
[327063901,1715772642164,-500.0,0.00024452,2]
[327063902,1715772642173,-500.0,0.00024452,2]
[327063903,1715772642184,-500.0,0.00024452,2]
[327063904,1715772642193,-500.0,0.00024452,2]
[327063905,1715772642202,-500.0,0.00024452,2]
[327063906,1715772642211,-500.0,0.00024452,2]
[327063907,1715772642220,-500.0,0.00024452,2]
[327063908,1715772642229,-500.0,0.00024452,2]
[327063909,1715772642238,-500.0,0.00024452,2]
[327063910,1715772642247,-500.0,0.00024452,2]
[327063911,1715772642256,-194.53480799,0.00024452,2]
[327063912,1715772642266,-500.0,0.00024452,2]
[327063913,1715772642275,-500.0,0.00024452,2]
[327063914,1715772642285,-574.41281333,0.00024452,2]
[327063915,1715772642295,-485.85191442,0.00024453,2]
[327063916,1715772642304,-157.25038364,0.00024453,2]
[327063917,1715772642314,-527.76435625,0.00024453,2]
[327063918,1715772642324,-273.34503605,0.00024453,2]
[327063919,1715772642334,-241.9360222,0.00024453,2]
[327063920,1715772642344,-468.4311512,0.00024453,2]
[327063921,1715772642353,-17403.50358381,0.00024453,3]
[327063922,1715772642363,-11647.29732839,0.00024453,3]
[327063978,1715772646797,-649.13818402,0.00024453,3]
[327064796,1715773261142,1001.1062598,0.00017904,2]
[327064797,1715773411526,500.0,0.00017904,2]
[327064798,1715773475510,1042.08012246,0.00017904,2]
[327064799,1715773493546,1042.08012246,0.00017904,2]
[327064800,1715773507159,990.9687576,0.0001771,2]
[327064801,1715773509553,915.83975508,0.00017904,2]
[327064802,1715773543879,24900.0,0.00017733,2]
[327064810,1715773804152,684.29354561,9.999e-05,2]
[327064843,1715773832620,-2113.61592946,0.00018145,2]
[327064844,1715773832630,-689.90178801,0.00018146,2]
[327064845,1715773832640,-2697.89834889,0.00018587,2]
[327064846,1715773832687,-251.61886453,0.00018587,2]
[327064865,1715773838590,-481.44749308,0.00018587,2]
[327064866,1715773838600,-972.39081,0.00018704,2]
[327064867,1715773838609,-1760.75920118,0.000189,2]
[327064868,1715773838618,-921.54747398,0.0001989,2]
[327064869,1715773838627,-189.49414795,0.000199,2]
[327064870,1715773838636,-217.2172017,0.0002,2]
[327064871,1715773838645,-1564.87365674,0.0002,2]
[327064872,1715773838656,-5339.1513335,0.00020498,2]
[327064873,1715773838665,-2308.59694326,0.000205,5]
[327064874,1715773838675,-471.21166451,0.00021909,2]
[327064875,1715773838684,-500.0,0.00021909,2]
[327064876,1715773838694,-500.0,0.00021909,2]
[327064877,1715773838703,-500.0,0.00021909,2]
[327064878,1715773838712,-500.0,0.00021909,2]
[327064879,1715773838722,-500.0,0.00021909,2]
[327064880,1715773838731,-500.0,0.00021909,2]
[327064881,1715773838740,-500.0,0.00021909,2]
[327064882,1715773838749,-500.0,0.00021909,2]
[327064883,1715773838758,-500.0,0.00021909,2]
[327064884,1715773838768,-500.0,0.00021909,2]
[327064885,1715773838777,-201.11394412,0.00021909,2]
[327064886,1715773838786,-500.0,0.00021909,2]
[327064887,1715773838796,-500.0,0.00021909,2]
[327064888,1715773838805,-500.0,0.00021909,2]
[327064889,1715773838815,-500.0,0.00021909,2]
[327064890,1715773838824,-500.0,0.00021909,2]
[327064891,1715773838833,-500.0,0.00021909,2]
[327064892,1715773838843,-500.0,0.00021909,2]
[327064893,1715773838851,-500.0,0.00021909,2]
[327064894,1715773838861,-500.0,0.00021909,2]
[327064895,1715773838870,-500.0,0.00021909,2]
[327064896,1715773838879,-500.0,0.00021909,2]
[327064897,1715773838888,-500.0,0.00021909,2]
[327064898,1715773838898,-500.0,0.00021909,2]
[327064899,1715773838908,-500.0,0.00021909,2]
[327064900,1715773838918,-500.0,0.00021909,2]
[327064901,1715773838927,-500.0,0.00021909,2]
[327064902,1715773838936,-500.0,0.00021909,2]
[327064903,1715773838945,-500.0,0.00021909,2]
[327064904,1715773838954,-488.19274124,0.00021909,2]
[327064905,1715773838964,-500.0,0.00021909,2]
[327064906,1715773838973,-500.0,0.00021909,2]
[327064907,1715773838982,-500.0,0.00021909,2]
[327064908,1715773838991,-500.0,0.00021909,2]
[327064909,1715773839001,-500.0,0.00021909,2]
[327064910,1715773839012,-500.0,0.00021909,2]
[327064911,1715773839022,-500.0,0.00021909,2]
[327064912,1715773839033,-500.0,0.00021909,2]
[327064913,1715773839046,-500.0,0.00021909,2]
[327064914,1715773839056,-500.0,0.00021909,2]
[327064915,1715773839065,-500.0,0.00021909,2]
[327064916,1715773839076,-40712.323593,0.0002191,2]
[327064917,1715773839086,-684.29354561,0.00021915,2]
[327064918,1715773839095,-500.0,0.00021916,2]
[327064919,1715773839105,-500.0,0.00021916,2]
[327064920,1715773839115,-622.323844,0.00021916,2]
[327064921,1715773839125,-500.0,0.00021916,2]
[327064922,1715773839134,-580.58579748,0.00021916,2]
[327064923,1715773839144,-288.62569767,0.00021916,2]
[327064924,1715773839155,-500.0,0.00021916,2]
[327064925,1715773839165,-500.0,0.00021916,2]
[327064926,1715773839174,-500.0,0.00021916,2]
[327064927,1715773839184,-500.0,0.00021916,2]
[327064928,1715773839193,-274.48678526,0.00021916,2]
[327064929,1715773840811,-225.51321474,0.00021916,2]
[327064930,1715773840821,-500.0,0.00021916,2]
[327064931,1715773840831,-500.0,0.00021916,2]
[327064932,1715773840840,-500.0,0.00021916,2]
[327064933,1715773840851,-500.0,0.00021916,2]
[327064934,1715773840860,-500.0,0.00021916,2]
[327064935,1715773840870,-500.0,0.00021916,2]
[327064936,1715773840879,-408.97561394,0.00021916,2]
[327064937,1715773840889,-500.0,0.00021916,2]
[327064938,1715773840898,-500.0,0.00021916,2]
[327064939,1715773840908,-266.71021885,0.00021916,2]
[327064940,1715773840918,-500.0,0.00021917,2]
[327064941,1715773840928,-502.07736687,0.00021917,2]
[327064942,1715773840938,-1400.8,0.00021917,4]
[327064943,1715773840948,-500.0,0.00021917,2]
[327064944,1715773841066,-648.43,0.00021917,2]
[327064945,1715773841098,-5390.15,0.00021917,2]
[327064946,1715773841108,-501.72444469,0.00021917,2]
[327064947,1715773841120,-2579.69,0.00021917,2]
[327064948,1715773841130,-500.0,0.00021917,2]
[327064949,1715773841140,-501.25720095,0.00021917,2]
[327064950,1715773841149,-500.0,0.00021917,2]
[327064951,1715773841159,-933.88,0.00021917,2]
[327064952,1715773841169,-500.0,0.00021917,2]
[327064953,1715773841178,-500.0,0.00021917,2]
[327064954,1715773841188,-691.69,0.00021917,2]
[327064955,1715773841198,-502.36319539,0.00021917,2]
[327064956,1715773841208,-500.0,0.00021917,2]